bitfinex-derivatives/quotes_SOLF0:USTF0_20250425
["timestamp","ask_amount","ask_price","bid_price","bid_amount"]
[1745591579814,11.5445,154.17,154.15,6.4828]
[1745591580308,11.5445,154.17,154.14,6.4834]
[1745591580514,11.5445,154.17,154.08,55.09420238]
[1745591580713,18.027,154.17,154.08,55.09420238]
[1745591580914,11.5445,154.17,154.08,55.09420238]
[1745591581811,18.0268,154.17,154.13,6.4837]
[1745591582012,11.5445,154.17,154.13,6.4837]
[1745591582214,11.5445,154.17,154.14,6.4834]
[1745591582414,11.5445,154.17,154.08,55.09420238]
[1745591582617,11.5445,154.17,154.13,6.4836]
[1745591582812,11.5445,154.17,154.08,55.09420238]
[1745591583713,27.92,154.21,154.17,6.4823]
[1745591583908,27.92,154.21,154.11,27.15420238]
[1745591584213,27.92,154.21,154.12,6.4842]
[1745591584416,27.92,154.21,154.08,55.09420238]
[1745591584716,6.4824,154.17,154.08,55.09420238]
[1745591584911,27.92,154.17,154.08,55.09420238]
[1745591585823,6.4829,154.16,154.08,55.09420238]
[1745591586124,31.8251,154.17,154.12,6.4841]
[1745591586424,6.4829,154.16,154.12,6.4841]
[1745591586826,31.8251,154.17,154.11,6.4847]
[1745591587024,31.8251,154.17,154.05,30.95950238]
[1745591587323,31.8251,154.17,154.05,58.87950238]
[1745591587519,6.4833,154.15,154.05,58.87950238]
[1745591587724,31.8251,154.17,154.05,58.87950238]
[1745591587925,31.8251,154.17,154.12,6.4841]
[1745591588119,6.4834,154.15,154.05,58.87950238]
[1745591588418,31.8251,154.17,154.08,27.15420238]
[1745591588823,6.4829,154.16,154.08,27.15420238]
[1745591589025,6.4829,154.16,154.12,6.484]
[1745591589221,6.4829,154.16,154.08,27.15420238]
[1745591589524,6.4829,154.16,154.13,6.4836]
[1745591590224,6.4832,154.15,154.08,27.15420238]
[1745591591222,6.4829,154.16,154.08,27.15420238]
[1745591591616,38.3075,154.17,154.08,27.15420238]
[1745591591819,31.8251,154.17,154.08,27.15420238]
[1745591592226,31.8251,154.17,154.06,27.15420238]
[1745591592427,31.8251,154.17,154.05,55.07420238]
[1745591592925,31.8251,154.17,154.08,27.15420238]
[1745591593225,6.483,154.16,154.13,6.4837]
[1745591593626,31.8251,154.17,154.06,27.15420238]
[1745591593825,31.13980238,154.16,154.05,27.92]
[1745591594526,3.9856,154.16,154.08,27.15420238]
[1745591595217,3.9856,154.16,154.05,55.07420238]
[1745591595727,6.4842,154.13,154.05,55.07420238]
[1745591596025,6.4842,154.13,154.1,6.4849]
[1745591596225,6.4842,154.13,154.05,55.07420238]
[1745591596527,6.4842,154.13,154.1,6.4848]
[1745591597923,6.4842,154.13,154.11,6.4848]
[1745591598129,6.4842,154.13,154.08,16.95473377]
[1745591598427,6.4837,154.14,154.11,6.4847]
[1745591598828,3.9856,154.16,154.08,16.95473377]
[1745591599126,6.4834,154.15,154.12,6.4842]
[1745591599828,3.9856,154.16,154.13,6.4839]
[1745591600329,3.9856,154.16,154.08,16.95473377]
[1745591600627,20.94033377,154.16,154.06,16.95473377]
[1745591600829,3.9856,154.16,154.08,16.95473377]
[1745591601029,3.9856,154.16,154.14,6.4835]
[1745591602132,3.9856,154.16,154.08,16.95473377]
[1745591603531,6.4832,154.15,154.11,6.4845]
[1745591603831,6.4832,154.15,154.08,16.95473377]
[1745591604232,3.9856,154.16,154.06,16.95473377]
[1745591604432,3.9856,154.16,154.08,16.95473377]
[1745591604829,3.9856,154.16,154.1,16.95473377]
[1745591605431,10.4685,154.16,154.12,6.4841]
[1745591605627,3.9856,154.16,154.12,6.4841]
[1745591605833,31.8251,154.17,154.12,16.95473377]
[1745591606033,38.3074,154.17,154.13,6.4837]
[1745591606733,38.3074,154.17,154.12,23.43893377]
[1745591607034,38.3074,154.17,154.12,16.95473377]
[1745591607237,38.3074,154.17,154.13,6.4837]
[1745591607534,6.4828,154.16,154.12,16.95473377]
[1745591607731,31.8251,154.17,154.12,16.95473377]
[1745591608031,6.4835,154.15,154.1,16.95473377]
[1745591608231,31.8251,154.17,154.1,23.43973377]
[1745591608431,6.4834,154.15,154.1,16.95473377]
[1745591608631,31.8251,154.17,154.12,16.95473377]
[1745591608932,31.8251,154.17,154.13,6.4837]
[1745591609133,38.3074,154.17,154.13,6.4837]
[1745591609432,38.3074,154.17,154.12,16.95473377]
[1745591609433,27.92,154.21,154.14,16.95473377]
[1745591609635,27.92,154.21,154.16,16.95473377]
[1745591610531,6.4812,154.2,154.16,23.43723377]
[1745591610727,27.92,154.21,154.14,16.95473377]
[1745591611031,6.4812,154.2,154.16,6.4827]
[1745591611333,27.92,154.24,154.18,16.95473377]
[1745591611534,10.3185,154.23,154.18,16.95473377]
[1745591611737,3.8385,154.23,154.18,16.95473377]
[1745591612532,3.8385,154.23,154.19,6.4814]
[1745591612929,10.3184,154.23,154.19,6.4814]
[1745591613840,3.8385,154.23,154.18,16.95473377]
[1745591614028,27.92,154.24,154.2,16.95473377]
[1745591614334,4.0413,154.25,154.2,16.95473377]
[1745591614534,4.0413,154.25,154.21,6.4804]
[1745591615034,473.5389,154.26,154.21,6.4804]
[1745591615236,27.88,154.27,154.22,16.95473377]
[1745591616137,34.3582,154.27,154.22,23.43483377]
[1745591616332,27.88,154.27,154.22,16.95473377]
[1745591616831,27.88,154.27,154.23,6.4796]
[1745591617031,27.88,154.27,154.22,16.95473377]
[1745591617234,27.88,154.27,154.24,16.95473377]
[1745591617434,3.8114,154.29,154.24,16.95473377]
[1745591618133,3.8114,154.29,154.22,16.95473377]
[1745591618339,3.8114,154.29,154.18,16.95473377]
[1745591618534,16.95473377,154.23,154.14,16.95473377]
[1745591618729,35.5957,154.22,154.13,3.8729]
[1745591618931,6.4812,154.2,154.15,6.483]
[1745591619240,6.4812,154.2,154.13,3.8729]
[1745591619531,39.6145,154.22,154.14,16.95473377]
[1745591620435,16.95473377,154.21,154.12,44.81473377]
[1745591620937,39.6145,154.22,154.12,44.81473377]
[1745591621141,46.095,154.22,154.17,6.4822]
[1745591621437,39.6145,154.22,154.14,16.95473377]
[1745591621834,6.4811,154.2,154.15,6.4827]
[1745591622035,39.6145,154.22,154.14,16.95473377]
[1745591622337,6.4808,154.21,154.16,6.4825]
[1745591622936,39.6145,154.22,154.16,6.4825]
[1745591623136,6.4808,154.21,154.16,6.4825]
[1745591624033,46.0948,154.22,154.17,6.4822]
[1745591624230,31.7317,154.22,154.14,16.95473377]
[1745591624430,31.7317,154.22,154.16,16.95473377]
[1745591624637,31.7317,154.22,154.14,16.95473377]
[1745591625138,38.212,154.22,154.17,6.482]
[1745591625538,31.7317,154.22,154.16,16.95473377]
[1745591625737,27.86,154.22,154.2,16.95473377]
[1745591625941,27.86,154.26,154.2,16.95473377]
[1745591626241,27.86,154.26,154.22,6.4801]
[1745591626437,27.86,154.26,154.2,16.95473377]
[1745591626637,27.86,154.26,154.22,16.95473377]
[1745591626833,466.72,154.27,154.22,16.95473377]
[1745591627038,8.0433,154.3,154.24,16.95473377]
[1745591627340,31.8258,154.3,154.27,6.4779]
[1745591627541,31.8258,154.3,154.24,16.95473377]
[1745591628741,7.5209,154.34,154.28,16.95473377]
[1745591628946,3.8215,154.34,154.3,16.95473377]
[1745591629243,103.73845098,154.37,154.3,16.95473377]
[1745591629436,4.0012,154.36,154.3,16.95473377]
[1745591629838,4.0012,154.36,154.32,16.95473377]
[1745591630242,27.86,154.37,154.32,16.95473377]
[1745591630542,27.86,154.4,154.32,16.95473377]
[1745591630943,27.86,154.4,154.34,16.95473377]
[1745591631143,4.049,154.42,154.36,16.95473377]
[1745591631341,4.049,154.42,154.38,6.4731]
[1745591631745,4.049,154.42,154.37,6.4738]
[1745591631944,4.049,154.42,154.33,31.5738]
[1745591632345,4.049,154.42,154.33,3.7138]
[1745591632546,6.4735,154.39,154.33,6.4752]
[1745591632748,4.049,154.42,154.33,6.4752]
[1745591632944,6.4733,154.39,154.33,6.4754]
[1745591633248,27.86,154.38,154.29,27.02535651]
[1745591633548,27.86,154.38,154.31,6.4761]
[1745591633847,27.86,154.38,154.28,27.86]
[1745591634048,6.4747,154.35,154.29,6.477]
[1745591634247,7.7897,154.37,154.28,27.86]
[1745591634549,6.4744,154.36,154.3,6.4765]
[1745591635152,6.4744,154.36,154.31,6.4763]
[1745591635346,7.7897,154.37,154.28,27.86]
[1745591635649,7.7897,154.37,154.29,6.4772]
[1745591636252,6.4748,154.35,154.29,6.4772]
[1745591637154,27.84,154.34,154.25,27.86]
[1745591637354,31.7252,154.34,154.25,27.86]
[1745591637653,6.4761,154.32,154.26,6.4782]
[1745591637953,31.7252,154.34,154.25,27.86]
[1745591637954,58.75055651,154.34,154.25,27.86]
[1745591638356,58.75055651,154.34,154.25,6.4788]
[1745591638653,58.75055651,154.34,154.22,27.84]
[1745591638854,6.4767,154.31,154.22,27.84]
[1745591639152,27.84,154.3,154.22,27.84]
[1745591639356,6.4776,154.29,154.23,6.4797]
[1745591639854,6.4776,154.29,154.24,6.4793]
[1745591640053,6.4776,154.29,154.22,27.84]
[1745591640352,6.4777,154.28,154.22,27.84]
[1745591640557,27.84,154.3,154.19,31.575]
[1745591640751,4.0949,154.27,154.19,31.575]
[1745591642256,10.5731,154.27,154.22,6.48]
[1745591643459,6.4785,154.26,154.21,6.4805]
[1745591643659,4.0949,154.27,154.19,31.575]
[1745591643962,10.5731,154.27,154.19,31.575]
[1745591644161,4.0949,154.27,154.19,31.575]
[1745591644462,10.5734,154.27,154.19,31.575]
[1745591644662,10.5734,154.27,154.23,6.4797]
[1745591645052,14.1027,154.29,154.2,27.02535651]
[1745591645257,3.8357,154.29,154.2,27.02535651]
[1745591645462,27.84,154.3,154.2,27.02535651]
[1745591645761,34.3172,154.3,154.25,6.4787]
[1745591646059,27.84,154.3,154.23,27.02535651]
[1745591646261,27.84,154.3,154.27,6.478]
[1745591646461,27.84,154.3,154.23,54.84535651]
[1745591646661,27.84,154.3,154.26,6.4785]
[1745591646861,27.84,154.3,154.23,54.84535651]
[1745591647363,34.3171,154.3,154.25,6.4789]
[1745591647967,34.3171,154.3,154.26,6.4785]
[1745591649661,27.84,154.3,154.2,54.82535651]
[1745591649963,27.84,154.3,154.2,27.02535651]
[1745591650166,27.84,154.3,154.22,6.4799]
[1745591650568,6.4784,154.27,154.22,6.4799]
[1745591650864,6.4784,154.27,154.19,31.535]
[1745591650865,6.4784,154.27,154.23,6.4797]
[1745591651065,27.84,154.3,154.19,31.535]
[1745591651267,27.84,154.3,154.26,6.4784]
[1745591651460,27.84,154.3,154.22,27.02535651]
[1745591651861,6.4773,154.29,154.25,6.4789]
[1745591652161,27.84,154.3,154.25,6.4789]
[1745591652460,34.3172,154.3,154.25,6.4789]
[1745591652867,27.84,154.3,154.22,27.02535651]
[1745591653267,27.84,154.3,154.24,16.92079096]
[1745591653464,34.3169,154.3,154.26,6.4783]
[1745591653664,34.3169,154.3,154.24,16.92079096]
[1745591653861,3.7455,154.32,154.26,16.92079096]
[1745591655276,494.24,154.33,154.28,16.92079096]
[1745591655464,27.82,154.36,154.3,16.92079096]
[1745591655658,27.82,154.37,154.3,16.92079096]
[1745591656368,6.4746,154.36,154.32,6.4757]
[1745591656866,27.82,154.37,154.3,16.92079096]
[1745591657364,34.2943,154.37,154.33,6.4754]
[1745591657967,34.2943,154.37,154.3,16.92079096]
[1745591658367,6.4744,154.36,154.3,16.92079096]
[1745591658566,27.8,154.4,154.34,16.92079096]
[1745591658766,27.8,154.4,154.36,16.92079096]
[1745591658961,27.8,154.4,154.37,6.4736]
[1745591659160,27.8,154.4,154.34,16.92079096]
[1745591659366,27.8,154.4,154.32,16.92079096]
[1745591659565,27.8,154.4,154.37,6.4738]
[1745591659859,27.8,154.4,154.36,16.92079096]
[1745591660064,27.8,154.4,154.38,6.473]
[1745591660569,27.8,154.4,154.39,6.473]
[1745591660769,27.8,154.43,154.36,16.92079096]
[1745591661071,34.2716,154.43,154.36,16.92079096]
[1745591661269,27.8,154.43,154.36,16.92079096]
[1745591662069,27.8,154.43,154.38,16.92079096]
[1745591662269,27.8,154.43,154.4,6.4723]
[1745591662468,27.8,154.43,154.38,16.92079096]
[1745591662668,61.33642152,154.58,154.4,16.92079096]
[1745591662871,20.88719096,154.54,154.43,16.92079096]
[1745591663370,6.4675,154.53,154.48,6.4691]
[1745591663669,27.8,154.52,154.45,16.92079096]
[1745591663871,34.2677,154.52,154.45,16.92079096]
[1745591664069,27.8,154.51,154.47,16.92079096]
[1745591664469,27.8,154.51,154.48,6.4689]
[1745591665071,27.8,154.51,154.47,23.39039096]
[1745591665273,27.8,154.51,154.46,26.99212399]
[1745591665566,27.8,154.51,154.48,6.469]
[1745591665770,27.8,154.51,154.46,26.99212399]
[1745591667068,27.8,154.51,154.43,26.99212399]
[1745591667572,27.8,154.51,154.47,6.4695]
[1745591668071,27.8,154.51,154.47,6.4694]
[1745591668473,27.8,154.51,154.43,26.99212399]
[1745591668675,34.2683,154.51,154.43,26.99212399]
[1745591668872,27.8,154.51,154.43,26.99212399]
[1745591669269,3.6902,154.5,154.43,26.99212399]
[1745591669675,3.6902,154.5,154.46,6.4698]
[1745591669873,3.6902,154.5,154.43,26.99212399]
[1745591670475,3.6902,154.5,154.45,6.4705]
[1745591670775,3.6902,154.5,154.43,26.99212399]
[1745591671573,3.6902,154.5,154.46,6.4701]
[1745591672770,3.6902,154.5,154.43,26.99212399]
[1745591673076,3.6902,154.5,154.46,6.4701]
[1745591673274,10.1587,154.5,154.43,26.99212399]
[1745591673478,469.6702,154.5,154.42,26.99212399]
[1745591674267,27.74,154.49,154.42,26.99212399]
[1745591675277,27.74,154.49,154.39,4.0703]
[1745591675278,27.74,154.49,154.45,26.99212399]
[1745591675878,27.74,154.49,154.48,6.4693]
[1745591676675,27.74,154.49,154.45,26.99212399]
[1745591677769,27.74,154.49,154.48,6.4693]
[1745591678579,465.98,154.5,154.48,6.4693]
[1745591678781,465.98,154.5,154.49,6.4688]
[1745591678981,493.72,154.5,154.45,26.99212399]
[1745591679178,493.72,154.5,154.48,6.469]
[1745591679577,493.72,154.5,154.45,26.99212399]
[1745591679882,493.72,154.5,154.49,6.4688]
[1745591680275,465.98,154.5,154.49,6.4688]
[1745591680484,493.7,154.5,154.49,6.4688]
[1745591680677,465.98,154.5,154.49,6.4688]
[1745591680875,493.7,154.5,154.48,6.4691]
[1745591681583,493.7,154.5,154.49,6.4688]
[1745591682084,493.7,154.5,154.45,26.99212399]
[1745591682284,493.7,154.5,154.49,6.4688]
[1745591683982,465.98,154.5,154.49,6.4688]
[1745591684586,31.6864,154.54,154.53,6.4672]
[1745591684780,465.82,154.6,154.51,26.99212399]
[1745591685083,27.72,154.59,154.51,26.99212399]
[1745591685283,27.72,154.59,154.48,26.99212399]
[1745591685478,493.54,154.6,154.55,16.85255036]
[1745591685986,493.54,154.6,154.58,6.4649]
[1745591686582,493.54,154.6,154.59,6.4647]
[1745591687484,3.7699,154.63,154.62,6.4634]
[1745591687785,27.72,154.63,154.62,6.4634]
[1745591688782,27.72,154.66,154.64,6.4625]
[1745591689184,27.72,154.66,154.56,16.85255036]
[1745591689388,16.85255036,154.63,154.58,6.4647]
[1745591689588,31.4506,154.62,154.54,16.85255036]
[1745591689783,39.4467,154.62,154.52,16.85255036]
[1745591689987,39.4467,154.62,154.5,16.85255036]
[1745591689988,16.85255036,154.59,154.5,16.85255036]
[1745591690188,34.1853,154.58,154.5,16.85255036]
[1745591690393,16.85255036,154.57,154.51,6.4679]
[1745591690686,16.85255036,154.57,154.46,20.89395036]
[1745591691383,6.4662,154.56,154.52,6.4674]
[1745591691584,6.4662,154.56,154.46,31.03019613]
[1745591691585,493.36,154.58,154.49,26.98879613]
[1745591691990,493.36,154.58,154.54,6.4666]
[1745591692389,499.8252,154.58,154.54,6.4666]
[1745591692589,493.36,154.58,154.55,6.4663]
[1745591692987,493.36,154.58,154.49,26.98879613]
[1745591693187,493.36,154.58,154.46,26.98879613]
[1745591693383,6.4662,154.56,154.46,26.98879613]
[1745591693588,520.34879613,154.58,154.46,26.98879613]
[1745591693890,6.4661,154.56,154.5,6.4681]
[1745591694191,6.4661,154.56,154.51,6.4679]
[1745591694583,6.4656,154.57,154.46,26.98879613]
[1745591694890,493.36,154.58,154.46,26.98879613]
[1745591695392,6.4659,154.56,154.46,26.98879613]
[1745591695792,493.36,154.58,154.46,26.98879613]
[1745591696488,493.36,154.58,154.51,6.4678]
[1745591696889,493.36,154.58,154.46,26.98879613]
[1745591698292,6.466,154.56,154.46,26.98879613]
[1745591698993,6.466,154.56,154.52,6.4674]
[1745591699391,493.36,154.58,154.46,26.98879613]
[1745591699894,6.4674,154.53,154.45,3.7244]
[1745591700095,27.72,154.52,154.45,3.7244]
[1745591700397,26.98879613,154.56,154.45,3.7244]
[1745591700398,31.5922,154.55,154.47,26.98879613]
[1745591701896,31.5922,154.55,154.49,6.4687]
[1745591702095,6.4679,154.52,154.49,6.4687]
[1745591702295,6.4679,154.52,154.45,3.7244]
[1745591702296,27.72,154.51,154.45,3.7244]
[1745591702486,27.72,154.51,154.4,26.98879613]
[1745591702688,6.4695,154.48,154.4,26.98879613]
[1745591702890,4.0797,154.5,154.4,26.98879613]
[1745591702891,27.72,154.47,154.4,26.98879613]
[1745591703198,6.4701,154.46,154.4,26.98879613]
[1745591703490,27.72,154.47,154.37,26.98879613]
[1745591703695,3.991,154.45,154.37,26.98879613]
[1745591703892,3.991,154.45,154.42,6.4716]
[1745591704194,3.991,154.45,154.37,26.98879613]
[1745591704586,3.991,154.45,154.42,6.4714]
[1745591704891,10.4615,154.45,154.42,6.4714]
[1745591705089,3.991,154.45,154.37,26.98879613]
[1745591705289,27.72,154.47,154.4,26.98879613]
[1745591705694,27.72,154.47,154.45,6.4704]
[1745591706294,27.72,154.47,154.45,6.4705]
[1745591706497,27.72,154.47,154.4,26.98879613]
[1745591706796,27.68,154.49,154.43,26.98879613]
[1745591707996,27.68,154.49,154.47,6.4694]
[1745591708198,27.68,154.49,154.4,39.93379613]
[1745591708595,27.68,154.49,154.4,26.98879613]
[1745591710497,27.68,154.49,154.47,6.469]
[1745591710796,27.68,154.49,154.4,26.98879613]
[1745591710994,27.68,154.49,154.48,6.4686]
[1745591711894,27.68,154.49,154.4,26.98879613]
[1745591712094,27.68,154.49,154.37,26.98879613]
[1745591712395,27.68,154.49,154.44,6.47]
[1745591712603,6.4694,154.47,154.37,26.98879613]
[1745591712899,27.68,154.49,154.37,26.98879613]
[1745591713395,26.98879613,154.48,154.35,26.98879613]
[1745591713901,6.47,154.45,154.42,6.4709]
[1745591714096,27.68,154.44,154.42,6.4709]
[1745591714792,27.68,154.44,154.35,26.98879613]
[1745591714999,11.6386,154.43,154.32,26.98879613]
[1745591715395,11.6386,154.43,154.31,3.7649]
[1745591715596,6.4727,154.39,154.3,26.98879613]
[1745591715900,27.68,154.38,154.3,26.98879613]
[1745591716100,27.68,154.37,154.33,26.98879613]
[1745591716290,27.68,154.38,154.33,26.98879613]
[1745591716494,34.1532,154.38,154.3,26.98879613]
[1745591716696,27.68,154.38,154.3,26.98879613]
[1745591716993,27.68,154.38,154.35,6.474]
[1745591717192,27.68,154.38,154.3,26.98879613]
[1745591717597,27.68,154.38,154.33,26.98879613]
[1745591717901,27.68,154.38,154.37,6.4732]
[1745591718305,27.68,154.38,154.33,26.98879613]
[1745591719101,27.68,154.38,154.37,6.4732]
[1745591721301,11.6386,154.43,154.42,6.4711]
[1745591721505,11.6386,154.43,154.36,26.98879613]
[1745591721506,493.54,154.45,154.39,26.98879613]
[1745591721803,493.54,154.45,154.42,26.98879613]
[1745591721999,27.68,154.45,154.44,6.4703]
[1745591725905,27.68,154.45,154.43,6.4706]
[1745591726404,31.5535,154.45,154.39,26.98879613]
[1745591726601,31.5535,154.45,154.36,26.98879613]
[1745591726802,3.851,154.44,154.36,26.98879613]
[1745591727002,3.851,154.44,154.33,26.98879613]
[1745591727003,7.7309,154.44,154.33,26.98879613]
[1745591727206,465.92,154.43,154.33,26.98879613]
[1745591727607,6.4722,154.4,154.37,6.473]
[1745591727899,27.68,154.39,154.3,26.98879613]
[1745591728111,6.4733,154.37,154.34,6.4742]
[1745591728296,31.7165,154.38,154.27,26.98879613]
[1745591728497,4.0107,154.36,154.27,26.98879613]
[1745591728702,6.4747,154.34,154.31,6.4755]
[1745591728905,27.68,154.33,154.24,26.98879613]
[1745591729307,493.68,154.33,154.24,26.98879613]
[1745591729807,6.4753,154.32,154.24,26.98879613]
[1745591730307,500.1553,154.33,154.29,6.4763]
[1745591730605,493.68,154.33,154.24,26.98879613]
[1745591730903,27.68,154.32,154.27,26.98879613]
[1745591732108,27.68,154.32,154.31,6.4757]
[1745591733907,27.68,154.32,154.25,26.98879613]
[1745591734401,27.68,154.32,154.31,6.4757]
[1745591735208,27.68,154.32,154.22,26.98879613]
[1745591735706,34.1555,154.32,154.22,26.98879613]
[1745591736011,27.68,154.32,154.22,26.98879613]
[1745591736907,6.4759,154.31,154.28,6.4769]
[1745591737204,27.68,154.32,154.28,6.4769]
[1745591737508,4.0656,154.3,154.22,26.98879613]
[1745591737708,10.5419,154.3,154.27,6.4772]
[1745591738309,10.5419,154.3,154.22,26.98879613]
[1745591738508,3.9,154.29,154.22,26.98879613]
[1745591738810,27.64,154.28,154.22,26.98879613]
[1745591739309,27.64,154.28,154.26,6.4775]
[1745591740110,27.64,154.28,154.27,6.4774]
[1745591741307,466.0,154.33,154.31,6.4757]
[1745591741510,27.66,154.32,154.25,26.98879613]
[1745591741706,466.0,154.33,154.25,26.98879613]
[1745591742209,27.66,154.32,154.28,26.98879613]
[1745591742411,27.66,154.32,154.25,26.98879613]
[1745591743913,27.66,154.32,154.22,26.98879613]
[1745591744410,6.4764,154.3,154.27,6.4771]
[1745591744610,27.66,154.32,154.22,26.98879613]
[1745591744812,34.1356,154.32,154.29,6.4763]
[1745591745212,6.4756,154.32,154.29,6.4763]
[1745591745514,466.0,154.33,154.25,26.98879613]
[1745591745712,27.66,154.32,154.25,26.98879613]
[1745591746103,466.0,154.33,154.25,26.98879613]
[1745591746304,27.66,154.32,154.28,26.98879613]
[1745591746717,466.0,154.33,154.28,26.98879613]
[1745591746917,493.66,154.33,154.28,26.98879613]
[1745591747213,27.66,154.32,154.28,26.98879613]
[1745591747511,27.66,154.32,154.25,26.98879613]
[1745591748116,473.9827,154.41,154.3,26.98879613]
[1745591748318,27.66,154.4,154.3,26.98879613]
[1745591748511,34.1321,154.4,154.3,26.98879613]
[1745591748813,27.66,154.4,154.33,26.98879613]
[1745591749009,34.132,154.4,154.37,6.473]
[1745591749512,27.66,154.4,154.33,26.98879613]
[1745591749716,34.1322,154.4,154.33,26.98879613]
[1745591750316,34.1322,154.4,154.37,6.4729]
[1745591750516,34.1322,154.4,154.33,26.98879613]
[1745591751018,34.1322,154.4,154.37,6.473]
[1745591751517,27.66,154.4,154.33,26.98879613]
[1745591751719,27.66,154.4,154.3,26.98879613]
[1745591752013,6.4733,154.37,154.3,26.98879613]
[1745591752220,27.66,154.36,154.3,26.98879613]
[1745591752517,34.1339,154.36,154.25,26.98879613]
[1745591752721,27.66,154.36,154.28,26.98879613]
[1745591753324,27.66,154.36,154.33,6.4747]
[1745591754021,34.1337,154.36,154.33,6.4747]
[1745591754224,27.66,154.36,154.32,6.4752]
[1745591754518,6.4758,154.31,154.23,26.98879613]
[1745591754720,31.7297,154.3,154.29,6.4766]
[1745591755619,31.7297,154.3,154.28,6.4769]
[1745591755816,31.7297,154.3,154.23,26.98879613]
[1745591755817,6.4766,154.29,154.23,26.98879613]
[1745591756017,31.7297,154.3,154.23,26.98879613]
[1745591756425,31.7297,154.3,154.26,26.98879613]
[1745591756824,31.7297,154.3,154.29,6.4766]
[1745591757327,31.7297,154.3,154.26,26.98879613]
[1745591757531,31.7297,154.3,154.28,6.4769]
[1745591757828,31.7297,154.3,154.21,12.9593]
[1745591758026,31.7297,154.3,154.26,6.4776]
[1745591758226,31.7297,154.3,154.21,26.98879613]
[1745591758627,38.2061,154.3,154.27,6.477]
[1745591758925,31.7297,154.3,154.21,26.98879613]
[1745591759431,31.7297,154.3,154.24,26.98879613]
[1745591759633,27.66,154.3,154.24,26.98879613]
[1745591759828,27.66,154.3,154.27,26.98879613]
[1745591760027,466.28,154.31,154.3,6.4762]
[1745591760328,27.66,154.33,154.27,26.98879613]
[1745591760527,466.32,154.39,154.3,26.98879613]
[1745591760728,27.66,154.36,154.33,26.98879613]
[1745591760923,27.66,154.36,154.35,6.4739]
[1745591762031,27.66,154.36,154.33,26.98879613]
[1745591762733,27.66,154.36,154.35,6.4741]
[1745591763734,27.66,154.36,154.33,26.98879613]
[1745591765130,27.66,154.36,154.35,6.4741]
[1745591766235,466.32,154.39,154.37,6.4729]
[1745591766536,27.6,154.38,154.33,26.98879613]
[1745591766833,27.6,154.38,154.3,26.98879613]
[1745591767234,6.4737,154.36,154.33,6.4747]
[1745591767431,27.6,154.38,154.33,6.4747]
[1745591767624,3.7333,154.37,154.3,26.98879613]
[1745591767825,27.6,154.38,154.33,26.98879613]
[1745591768236,27.6,154.38,154.37,6.4732]
[1745591768535,27.6,154.38,154.33,26.98879613]
[1745591768737,27.6,154.38,154.3,26.98879613]
[1745591769336,27.6,154.38,154.27,26.98879613]
[1745591769538,7.7442,154.37,154.27,26.98879613]
[1745591769737,6.4758,154.31,154.28,6.4769]
[1745591769934,27.6,154.3,154.28,6.4769]
[1745591770237,27.6,154.3,154.24,26.98879613]
[1745591771037,34.0763,154.3,154.27,6.4772]
[1745591771835,6.4766,154.29,154.26,6.4777]
[1745591772035,4.0565,154.29,154.24,26.98879613]
[1745591772838,4.0565,154.29,154.27,6.4772]
[1745591773737,4.0565,154.29,154.21,26.98879613]
[1745591773939,11.4728,154.29,154.21,26.98879613]
[1745591775239,6.477,154.28,154.21,26.98879613]
[1745591775741,6.477,154.28,154.25,6.478]
[1745591776438,17.9496,154.29,154.25,6.478]